Cogmind - Beta 13 @@@ ROGUE MODE // 2024.03.31 @ 21:47:29 Player: CrimsonOccultist Result: Destroyed by G-47 Trooper with Particle Gun Performance ------------- Evolutions (3) 1500 Regions Visited (6) 1200 Robots Destroyed (120) 600 Value Destroyed (4155) 4155 Prototype IDs (11) 220 Alien Tech Used (0) 0 Bonus (1265) 1265 TOTAL SCORE: 8940 Bonus ------- High Alert Combat Kills 504 Follower Combat Kills 474 Aligned with FarCom 300 Friendly Fire -13 Cogmind --------- Core Integrity 0/700 Matter 51/300 Energy 100/100 System Corruption 2% Temperature Cool (9) Movement Core (200) Ox3 Location -7/Factory Parts ------- > --- POWER (1) -------- (None) > --- PROPULSION (2) --- (None) > --- UTILITY (8) ------ Medium Storage Unit Improved Signal Interpreter Advanced Targeting Computer Advanced Targeting Computer > --- WEAPON (2) ------- (None) > --- INVENTORY (10) --- Nuclear Core Nuclear Core Advanced Targeting Computer Transmission Jammer Improved Light Armor Plating Hardlight Generator Improved Shield Generator Gauss Rifle Peak State ------------ > --- POWER ------------ Deuterium Engine > --- PROPULSION ------- Light Treads Armored Treads > --- UTILITY ---------- Medium Storage Unit Improved Signal Interpreter Advanced Targeting Computer Advanced Targeting Computer Core Analyzer Hardened Medium Armor Plating Medium Reactive Plating High-powered Tractor Beam > --- WEAPON ----------- Advanced Assault Cannon Advanced Assault Cannon > --- INVENTORY -------- Nuclear Core Nuclear Core Advanced Targeting Computer Transmission Jammer Improved Light Armor Plating Medium Reactive Plating Hardlight Generator Heavy Assault Rifle Gauss Rifle Rocket Launcher [Rating: 41] Favorites ----------- Power Light Nuclear Core Engine Deuterium Engine Power Core Light Nuclear Core Propulsion Light Treads Treads Light Treads Utility Improved Signal Interpreter Device High-powered Tractor Beam Storage Medium Storage Unit Processor Improved Signal Interpreter Protection Medium Reactive Plating Weapon Assault Rifle Energy Gun Medium Laser Ballistic Gun Assault Rifle Ballistic Cannon Advanced Assault Cannon Launcher Rocket Launcher Build | -11 -10 -10 -10 -9 -8 -7 ------- Run | Yrd Mat Min Exi Min Mat Fac Slots Evolved 6 | . . . . . 4 2 Power . | . . . . . . . Propulsion . | . . . . . . . Utility 6 | . . . . . 4 2 Weapon . | . . . . . . . Parts Attached 102 | 5 19 2 2 2 50 22 Power 10 | 1 6 . . 1 2 . Engine 9 | 1 6 . . 1 1 . Core 1 | . . . . . 1 . Reactor . | . . . . . . . Propulsion 25 | 2 5 . . 1 15 2 Treads 25 | 2 5 . . 1 15 2 Leg . | . . . . . . . Wheel . | . . . . . . . Hover . | . . . . . . . Flight . | . . . . . . . Utility 31 | . 2 . . . 21 8 Device 5 | . . . . . 3 2 Storage 2 | . . . . . 1 1 Processor 9 | . 2 . . . 7 . Hackware . | . . . . . . . Protection 15 | . . . . . 10 5 Artifact . | . . . . . . . Weapon 36 | 2 6 2 2 . 12 12 Energy Gun 3 | 1 2 . . . . . Energy Cannon . | . . . . . . . Ballistic Gun 19 | 1 4 2 2 . 7 3 Ballistic Cannon 8 | . . . . . 3 5 Launcher 6 | . . . . . 2 4 Special Weapon . | . . . . . . . Impact Weapon . | . . . . . . . Slashing Weapon . | . . . . . . . Piercing Weapon . | . . . . . . . Special Melee Weapon . | . . . . . . . Unidentified Prototypes 2 | . . . . . 2 . Parts Lost 19 | . 2 . . . 5 12 Power 2 | . 1 . . . . 1 Propulsion 3 | . . . . . 1 2 Utility 9 | . . . . . 3 6 Weapon 5 | . 1 . . . 1 3 Highest Loss Streak 9 | . 1 . . . 3 9 To Critical Strikes 1 | . . . . . 1 . Average Slot Usage (%) 95 | . 80 99 95 100 96 98 Engine 7 | . 13 14 14 14 2 6 Core 2 | . . . . . 6 . Treads 20 | . 27 28 28 28 17 14 Device 1 | . . . . . . 6 Storage 3 | . . . . . 5 7 Processor 26 | . 10 28 28 28 30 29 Protection 9 | . . . . . 15 14 Ballistic Gun 15 | . 23 27 23 28 14 1 Ballistic Cannon 4 | . . . . . 3 12 Naked Turns 2 | . 2 . . . . . Heaviest Build 60 | 9 9 7 7 9 33 60 Greatest Support 43 | 40 40 40 40 43 43 40 Greatest Overweight (x) 8 | . 2 . . . 1 8 Average Overweight (x) . | . . . . . . 1 Largest Inventory Capacity 10 | 5 5 5 5 5 10 10 Average Capacity 7 | 5 5 5 5 5 7 10 Most Carried 10 | 1 5 5 5 5 10 10 Average Carried 6 | . 3 4 4 5 6 9 Final Capacity 10 | 5 5 5 5 5 10 10 Final Carried 10 | 1 4 5 5 5 10 8 Class Distribution -------------------- 91% | Mutant 8% | Scavenger-Mutant Dominant Class ---------------- Mutant | -10/Materials Mutant | -10/Mines Mutant | -10/Exiles Mutant | -9/Mines Mutant | -8/Materials Mutant | -7/Factory Resources | -11 -10 -10 -10 -9 -8 -7 ----------- Run | Yrd Mat Min Exi Min Mat Fac Matter Collected 3709 | 219 504 105 . 66 1633 1182 Remotely 1068 | . . . . . . 1068 Salvage Created 3608 | . 716 79 . . 1672 1141 Parts 214 | . 48 5 . . 104 57 Haulers Intercepted 1 | . . . . . 1 . Recyclers Shooed 6 | . . . . . 2 4 Parts Field Recycled . | . . . . . . . Retrieved Matter . | . . . . . . . Parts Self-Destructed . | . . . . . . . Prevented . | . . . . . . . Kills | -11 -10 -10 -10 -9 -8 -7 ------- Run | Yrd Mat Min Exi Min Mat Fac Combat Hostiles Destroyed 96 | . 20 2 . . 38 36 Guns 45 | . 20 2 . . 21 2 Cannons 40 | . . . . . 14 26 AOE 11 | . . . . . 3 8 Classes Destroyed 14 | . 4 . . . 7 3 Worker 6 | . 2 . . . 4 . Builder 4 | . . . . . 2 2 Hauler 1 | . . . . . 1 . Recycler 3 | . . . . . . 3 Watcher 10 | . 2 . . . 5 3 Swarmer 23 | . 6 . . . 8 9 Grunt 42 | . 14 2 . . 12 14 Brawler 2 | . . . . . 1 1 Duelist 2 | . . . . . 1 1 Protector 1 | . . . . . . 1 Sentry 16 | . . . . . 10 6 Specialist 4 | . . . . . 4 . Hunter 2 | . . . . . 2 . Programmer 4 | . . . . . . 4 Best Kill Streak 5 | . 4 2 . . 4 5 Combat Bots Only 5 | . 4 2 . . 4 5 Max Kills in Single Turn 2 | . 2 1 . . 1 2 Gunslinging . | . . . . . . . Exploded 2 | . . . . . 1 2 Melee . | . . . . . . . Uniques/NPCs Destroyed . | . . . . . . . Combat | -11 -10 -10 -10 -9 -8 -7 -------- Run | Yrd Mat Min Exi Min Mat Fac Hostile Shots Fired 729 | . 94 16 . . 235 384 Missed 201 | . 18 3 . . 63 117 Damage Taken 6713 | . 809 160 . . 2441 3303 Core 1248 | . 126 48 . . 361 713 Absorbed by Shields . | . . . . . . . Redirected to Shielding 70 | . . . . . 70 . Ignored by Resistances 300 | . . . . . . 300 Regen/Repaired (Parts) 543 | . 126 . . . 97 320 Core Remaining (%) 54 | 100 . . . 30 34 . Volleys Fired 349 | . 75 10 . . 157 107 Largest 2 | . 2 2 . . 2 2 Hottest 96 | . 90 40 . . 64 96 Shots Fired 666 | . 148 20 1 . 306 191 Gun 408 | . 148 20 1 . 219 20 Cannon 246 | . . . . . 82 164 Launcher 12 | . . . . . 5 7 Special . | . . . . . . . Kinetic 607 | . 101 20 1 . 301 184 Thermal 47 | . 47 . . . . . Explosive 12 | . . . . . 5 7 Electromagnetic . | . . . . . . . Robot Hit Streak 35 | . 9 14 3 . 35 23 Robot Miss Streak 7 | . 5 2 . . 7 3 Penetration Max . | . . . . . . . Secondary Targets 5 | . 1 1 . . 2 1 Max Gunslinging Chain 1 | . 1 1 . . 1 1 Shots Hit Robots 452 | . 89 16 1 . 210 136 Core Hits 218 | . 37 5 . . 89 87 Critical Kills 1 | . . . . . 1 . Critical Parts Destroyed 1 | . 1 . . . . . Critical Strikes 21 | . 8 . . . 4 9 Burn 7 | . 7 . . . . . Destroy 2 | . 1 . . . 1 . Blast 12 | . . . . . 3 9 Melee Attacks . | . . . . . . . Impact . | . . . . . . . Slashing . | . . . . . . . Piercing . | . . . . . . . Sneak Attacks . | . . . . . . . Combat Hostiles . | . . . . . . . Follow-up Attacks . | . . . . . . . Damage Inflicted 9767 | . 1197 214 13 11 3671 4661 Guns 3619 | . 1195 212 13 . 1975 224 Cannons 4747 | . . . . . 1409 3338 Explosions 1309 | . . . . . 226 1083 Melee . | . . . . . . . Ramming 92 | . 2 2 . 11 61 16 Kinetic 7974 | . 803 212 13 . 3384 3562 Thermal 598 | . 392 . . . . 206 Explosive 1103 | . . . . . 226 877 Electromagnetic . | . . . . . . . Impact . | . . . . . . . Slashing . | . . . . . . . Piercing . | . . . . . . . Highest Corruption 2 | . 2 2 2 2 1 2 Average Corruption 1 | . 2 2 2 2 1 1 Corruption Purged . | . . . . . . . Corruption Blocked . | . . . . . . . Effects 73 | . 5 11 12 12 32 1 Message Errors 14 | . . 3 3 2 6 . Matter Fused 13 | . 1 2 1 2 7 . Heat Flow Errors 13 | . 4 2 1 3 3 . Energy Discharges 12 | . . 1 6 1 4 . Parts Rejected 1 | . . . . . . 1 Parts Fused 1 | . . . . . 1 . Data Loss (minor) 11 | . . 3 . 3 5 . Data Loss (major) 4 | . . . . 1 3 . Misfires 2 | . . . 1 . 1 . Alerts 2 | . . . . . 2 . Overload Shots . | . . . . . . . Overflow Damage 57 | . . . . . 8 49 Projectiles 45 | . . . . . 8 37 Explosions 12 | . . . . . . 12 Melee . | . . . . . . . Knockbacks 49 | . . . . . 18 31 Impact 2 | . . . . . 2 . Kinetic 41 | . . . . . 15 26 Secondary 6 | . . . . . 1 5 Self-Inflicted Damage 62 | . . . . . 48 14 Shots 2 | . . . . . 1 1 Rammed 29 | . 1 2 . 5 15 6 Targets Rammed 31 | . 1 2 . 5 17 6 Kicked . | . . . . . . . Crushed 2 | . . . . . 2 . Highest Temperature 438 | . 234 212 106 150 225 438 Average Temperature 82 | . 55 77 56 69 46 119 Received Heat Transfer 2532 | . 375 105 . . 684 1368 Effects 9 | . 1 . . . 1 7 Shutdowns 2 | . . . . . . 2 Energy Bleed 1 | . . . . . 1 . Interference 2 | . 1 . . . . 1 Matter Decay 3 | . . . . . . 3 Damage (minor) 1 | . . . . . . 1 Siege Activations . | . . . . . . . Robots Corrupted . | . . . . . . . Combat Hostiles . | . . . . . . . Parts Fried . | . . . . . . . Impact Corruptions . | . . . . . . . Robots Melted . | . . . . . . . Combat Hostiles . | . . . . . . . Parts Melted 5 | . 1 . . . 4 . Heat Transferred 1754 | . 1654 . . . . 100 Parts Sabotaged . | . . . . . . . Parts Stolen . | . . . . . . . Parts Stripped . | . . . . . . . Power Chain Reactions . | . . . . . . . Alert | -11 -10 -10 -10 -9 -8 -7 ------- Run | Yrd Mat Min Exi Min Mat Fac Peak Influence 779 | . 330 215 . 63 763 779 Initial 346 | . . 4 . . . 346 Average 268 | . 70 82 . 19 363 411 Maximum Alert Level 3 | . 1 1 . . 3 3 Low Security (%) 49 | 100 92 90 . 100 40 . Level 1 22 | . 7 9 . . 11 62 Level 2 21 | . . . . . 32 33 Level 3 6 | . . . . . 14 3 Level 4 . | . . . . . . . Level 5 . | . . . . . . . High Security . | . . . . . . . Max Security . | . . . . . . . Squads Dispatched 29 | . 7 1 . . 10 11 Investigation 8 | . 5 . . . 2 1 Extermination 4 | . . . . . . 4 Reinforcement 8 | . 2 . . . 5 1 Assault 3 | . . 1 . . . 2 Garrison 6 | . . . . . 3 3 Intercept . | . . . . . . . Searches Triggered . | . . . . . . . Construction Impeded . | . . . . . . . Haulers Reinforced . | . . . . . . . Active Scanning Responses . | . . . . . . . Cargo Convoy Interrupts . | . . . . . . . Stealth | -11 -10 -10 -10 -9 -8 -7 --------- Run | Yrd Mat Min Exi Min Mat Fac Distress Signals 6 | . 2 . . . 4 . Communications Jammed . | . . . . . . . Distress Signals . | . . . . . . . Times Spotted 143 | . 29 5 . . 56 53 Peak Tracking Total 6 | . 4 2 . . 3 6 Tactical Retreats 1 | . 1 . . . . . Traps | -11 -10 -10 -10 -9 -8 -7 ------- Run | Yrd Mat Min Exi Min Mat Fac Traps Triggered 6 | . 4 . . . . 2 Indirectly . | . . . . . . . Trap Hack Attempts . | . . . . . . . Triggered . | . . . . . . . Disarmed . | . . . . . . . Reprogrammed . | . . . . . . . Reused . | . . . . . . . Traps Extracted . | . . . . . . . Installed . | . . . . . . . Triggered . | . . . . . . . Machines | -11 -10 -10 -10 -9 -8 -7 ---------- Run | Yrd Mat Min Exi Min Mat Fac Machines Disabled 12 | . . . . . 3 9 Max in Single Turn 2 | . . . . . 1 2 Machines Repaired . | . . . . . . . Machines Dismantled . | . . . . . . . Machines Sabotaged . | . . . . . . . Overloaded Fab Kills . | . . . . . . . Hacking | -11 -10 -10 -10 -9 -8 -7 --------- Run | Yrd Mat Min Exi Min Mat Fac Machines Accessed 27 | . 8 . . . 13 6 Terminals 15 | . 5 . . . 8 2 Fabricators 2 | . . . . . . 2 Repair Stations 4 | . 1 . . . 2 1 Recycling Units 5 | . 2 . . . 2 1 Scanalyzers . | . . . . . . . Garrison Access 1 | . . . . . 1 . Total Hacks 73 | . 22 . . . 39 12 Successful 41 | . 14 . . . 17 10 Failed 32 | . 8 . . . 22 2 Catastrophic 5 | . 2 . . . 3 . Database Lockouts . | . . . . . . . Manual 3 | . . . 1 . 2 . Terminals 44 | . 15 . . . 26 3 Fabricators 2 | . . . . . . 2 Repair Stations 14 | . 3 . . . 6 5 Recycling Units 12 | . 4 . . . 6 2 Scanalyzers . | . . . . . . . Garrison Access 1 | . . . . . 1 . Terminal Hacks 20 | . 8 . . . 11 1 Record 1 | . . . . . 1 . Robot Analysis 2 | . 1 . . . 1 . Prototype ID Bank 5 | . 2 . . . 3 . Open DSF 1 | . . . . . . 1 Alert Level 1 | . . . . . 1 . Unreport Threat 2 | . 1 . . . 1 . Dispatch Records 1 | . . . . . 1 . Maintenance Status 1 | . 1 . . . . . Patrol Status 1 | . 1 . . . . . Recall Investigation 1 | . . . . . 1 . Hauler Manifests 1 | . 1 . . . . . Registered Components 1 | . . . . . 1 . Zone Layout 2 | . 1 . . . 1 . Fabricator Hacks 2 | . . . . . . 2 Network Status 1 | . . . . . . 1 Build 1 | . . . . . . 1 Repair Station Hacks 11 | . 3 . . . 3 5 Scan Component 7 | . 2 . . . 2 3 Repair 4 | . 1 . . . 1 2 Recycling Unit Hacks 7 | . 3 . . . 2 2 Report Inventory 1 | . . . . . . 1 Retrieve Components 6 | . 3 . . . 2 1 Scanalyzer . | . . . . . . . Garrison Access Hacks 1 | . . . . . 1 . Unlock Access 1 | . . . . . 1 . Unauthorized Hacks . | . . . . . . . Terminals . | . . . . . . . Fabricators . | . . . . . . . Repair Stations . | . . . . . . . Recycling Units . | . . . . . . . Scanalyzers . | . . . . . . . Garrison Access . | . . . . . . . Data Cores Recovered 1 | . . . . . 1 . Used 1 | . . . . . 1 . Hacking Detections 19 | . 6 . . . 10 3 Full Trace Events 9 | . 5 . . . 3 1 Feedback Events 1 | . . . . . 1 . Corruption 1 | . . . . . 1 . Feedback Blocked . | . . . . . . . Robot Schematics Acquired . | . . . . . . . Robots Built . | . . . . . . . Authchips . | . . . . . . . Time . | . . . . . . . Total Robot Build Rating . | . . . . . . . Part Schematics Acquired . | . . . . . . . Parts Built 2 | . . . . . . 2 Authchips . | . . . . . . . Time 42 | . . . . . . 42 Total Part Build Rating 8 | . . . . . . 8 Parts Repaired 4 | . 1 . . . 1 2 Time 134 | . 26 . . . 26 82 Parts Recycled . | . . . . . . . Recycled Matter . | . . . . . . . Retrieved Matter . | . . . . . . . Retrieved Components 36 | . 18 . . . 11 7 Parts Scanalyzed . | . . . . . . . Part Schematics Acquired . | . . . . . . . Parts Damaged . | . . . . . . . Bothacking | -11 -10 -10 -10 -9 -8 -7 ------------ Run | Yrd Mat Min Exi Min Mat Fac Used RIF Installer . | . . . . . . . Robots Hacked . | . . . . . . . Non-combat . | . . . . . . . Combat . | . . . . . . . Robot Hacks Applied . | . . . . . . . Relay Couplers Released . | . . . . . . . Fabnet Peak Effective % . | . . . . . . . Robots Rewired . | . . . . . . . Allies Hacked . | . . . . . . . Hacks Repelled . | . . . . . . . Allies | -11 -10 -10 -10 -9 -8 -7 -------- Run | Yrd Mat Min Exi Min Mat Fac Total Allies 6 | . . 6 . . . . Largest Group 5 | . . 5 5 4 1 . Highest-Rated Group 102 | . . 102 102 71 16 . Highest-Rated Ally 31 | . . 31 31 31 16 . Total Orders . | . . . . . . . Ally Attacks 78 | . . 36 . 30 12 . Total Damage 1225 | . . 694 . 357 174 . Kills 17 | . . 10 . 5 2 . Allies Corrupted . | . . . . . . . Allies Melted . | . . . . . . . Intel | -11 -10 -10 -10 -9 -8 -7 ------- Run | Yrd Mat Min Exi Min Mat Fac Robot Analysis Total 2 | . 1 . . . 1 . Derelict Logs Recovered 3 | . . 2 . 1 . . Drone Launches . | . . . . . . . Drone Recoveries . | . . . . . . . Exploration | -11 -10 -10 -10 -9 -8 -7 ------------- Run | Yrd Mat Min Exi Min Mat Fac Turns Passed 12371 | 80 1739 1074 791 1153 4617 2917 Spaces Moved 5574 | 48 867 611 346 692 2045 965 Core 14 | 4 4 . . . . 6 Treads 5560 | 44 863 611 346 692 2045 959 Legs . | . . . . . . . Wheels . | . . . . . . . Hover . | . . . . . . . Flight . | . . . . . . . Fastest Speed 50 | 50 50 160 160 160 160 165 Average Speed 175 | 150 159 160 160 160 162 244 Slowest Speed 450 | 160 160 160 160 160 240 450 Overloaded Moves . | . . . . . . . Propulsion Burnouts . | . . . . . . . Robots Hopped . | . . . . . . . Cave-ins Triggered . | . . . . . . . Exploration Rate (%) 71 | 5 99 98 77 98 96 25 Regions Visited 6 Branch Regions 3 Pre-discovered Areas 1 | . . . . 1 . . Known Exits Taken 5 | . 1 1 1 1 1 . Unknown Exits Taken 1 | 1 . . . . . . Scrap Searched 3 | . . 1 . 2 . . Spaces Dug 8 | . . . . . 8 . Terrain Destroyed 100 | . . . . . 51 49 Melee . | . . . . . . . Projectile 24 | . . . . . 12 12 AOE 76 | . . . . . 39 37 Terrain Rammed . | . . . . . . . Walls Destroyed . | . . . . . . . Machines Disabled . | . . . . . . . Actions | -11 -10 -10 -10 -9 -8 -7 --------- Run | Yrd Mat Min Exi Min Mat Fac Total 7494 | 53 1070 689 584 737 3037 1324 Wait 1309 | . 89 53 233 31 695 208 Move 5568 | 47 866 610 345 691 2044 965 Hop . | . . . . . . . Pick Up 56 | 1 9 5 1 2 31 7 Fast Attach 37 | 5 11 . 2 . 14 5 Attach 23 | . 3 2 . . 11 7 Detach 15 | . 2 1 . . 10 2 Swap 42 | . 5 . . 2 25 10 Drop 60 | . 9 4 3 4 33 7 Fire 349 | . 75 10 . . 157 107 Melee . | . . . . . . . Ram 1 | . . . . . . 1 Kick . | . . . . . . . Crush 30 | . 1 2 . 5 17 5 Escape Stasis . | . . . . . . . Rewire 4 | . . 2 . 2 . . Trap . | . . . . . . . Miscellaneous . | . . . . . . . Route ------- -11/Scrapyard -10/Materials (discovered 5 exits: *Mat x3 / *Min x2) -10/Mines (discovered 3 exits: *Mat x2 / *Exi) -10/Exiles -9/Mines (discovered 2 exits: *Mat x2) -8/Materials (discovered 4 exits: *Fac x3 / Gar) -7/Factory History --------- Turn | Location | Event 30 | -11/Scrapyard | Discovered new exit (range 15) 81 | -11/Scrapyard | Entered Materials 118 | -10/Materials | Discovered new exit (range 12) 310 | -10/Materials | Build established: Mutant 393 | -10/Materials | Discovered new exit (range 15) 538 | -10/Materials | Discovered new exit (range 11) 636 | -10/Materials | Repaired Lgt. Treads 964 | -10/Materials | Discovered new exit (range 6) 1107 | -10/Materials | Core integrity fell below 50% 1506 | -10/Materials | Discovered new exit (range 5) 1514 | -10/Materials | Identified exit to Materials 1819 | -10/Materials | Identified exit to Mines 1820 | -10/Materials | Entered Mines 2142 | -10/Mines | Assembled infested the area 2144 | -10/Mines | Found a damaged Exp. Sensor Array with a note attached 2149 | -10/Mines | Found Prototype Device 2162 | -10/Mines | Learned location of 1 exit from Materials 2211 | -10/Mines | Met 8R-AWN 2260 | -10/Mines | Met a Derelict testing a Signal Generator 2373 | -10/Mines | Joined a pair of Derelicts in attacking an 0b10 outpost 2432 | -10/Mines | Discovered exit to Materials (range 12) 2474 | -10/Mines | Assisted by bots powering up and referring to "LRC-V3" 2764 | -10/Mines | Learned 4 Materials zone layouts 2787 | -10/Mines | Discovered exit to Materials (range 3) 2888 | -10/Mines | Discovered new exit (range 5) 2893 | -10/Mines | Identified exit to Exiles 2894 | -10/Mines | Entered Exiles 2894 | -10/Exiles | Accompanied by 5 allies 2924 | -10/Exiles | Led the pair of lost Derelicts to a safe place 3165 | -10/Exiles | Welcomed by 8R-AWN 3194 | -10/Exiles | Met EX-HEX 3239 | -10/Exiles | Met EX-BIN 3260 | -10/Exiles | Aligned with FarCom system 3261 | -10/Exiles | Given EX-Vault access code 3300 | -10/Exiles | Opened EX-Vault 3318 | -10/Exiles | Found Prototype Device 3352 | -10/Exiles | Warned to stay clear of 0b10 Research branches 3408 | -10/Exiles | Met EX-DEC 3476 | -10/Exiles | Visited The Gauntlet 3658 | -10/Exiles | Discovered new exit (range 10) 3671 | -10/Exiles | Identified exit to Mines 3685 | -10/Exiles | Left Exiles lab with Cloak of Protection 3685 | -10/Exiles | Entered Mines 3685 | -9/Mines | Accompanied by 4 allies 3875 | -9/Mines | Discovered new exit (range 4) 3880 | -9/Mines | Identified exit to Materials 3934 | -9/Mines | A weapon hastily lodged in a ceiling crevice suddenly fell to the ground 3966 | -9/Mines | Discovered exit to Materials (range 8) 4039 | -9/Mines | Received a Rocket Launcher from a helpful Derelict 4211 | -9/Mines | Learned location of 1 exit from Proximity Caves 4270 | -9/Mines | Lost 3 allies 4303 | -9/Mines | Found a hidden stash of uninstalled traps 4423 | -9/Mines | Learned location of Storage (-7) 4838 | -9/Mines | Entered Materials 4838 | -8/Materials | Accompanied by 1 ally 4838 | -8/Materials | Evolved 4 slots: Utility x4 4839 | -8/Materials | Identified exit to Factory 4840 | -8/Materials | Identified Exp. Sensor Array 4841 | -8/Materials | Identified Cloak of Protection 7060 | -8/Materials | Repaired Assault Rifle 7242 | -8/Materials | Core integrity fell below 50% 7259 | -8/Materials | Lost 3 parts (1n1u1w) 7849 | -8/Materials | Garrison activated, responded to threat 8020 | -8/Materials | Identified exit to Garrison 8253 | -8/Materials | Build established: Scavenger-Mutant 8291 | -8/Materials | Discovered exit to Factory (range 14) 9219 | -8/Materials | Build established: Mutant 9455 | -8/Materials | Entered Factory 9455 | -7/Factory | Evolved 2 slots: Utility x2 9810 | -7/Factory | Fabricated Adv. Assault Cannon (x2) 11607 | -7/Factory | Garrison activated, responded to threat 12092 | -7/Factory | Repaired Adv. Assault Cannon 12149 | -7/Factory | Repaired Arm. Treads 12255 | -7/Factory | First assault squad dispatched 12350 | -7/Factory | Core integrity fell below 50% 12365 | -7/Factory | Core integrity fell below 20% 12372 | -7/Factory | Destroyed by G-47 Trooper with Particle Gun Last Messages --------------- 12352_ R-06 Scavenger collects Hvy. Assault Rifle. 12354_ Rocket Launcher destroyed. 12354_ R-06 Scavenger collects Remote Force Field. 12354_ K-01 Serf collects debris. 12356_ R-06 Scavenger collects Med. Storage Unit. 12357_ The unstable cave ceiling collapses. 12357_ K-01 Serf collects debris. 12357_ M-28 Smith repairs G-47 Trooper. 12358_ R-06 Scavenger collects Aluminum Leg. 12358_ Core Analyzer destroyed. 12361_ K-01 Serf collects debris. 12362_ Slammed into R-06 Scavenger. 12363_ Acquired 29 matter. 12364_ M-28 Smith repairs G-47 Trooper. 12365_ K-01 Serf collects debris. 12368_ M-28 Smith repairs M-28 Smith. 12369_ K-01 Serf collects debris. Map ----- +----------------------------------------------------+ | ??????????????# # # """ | | ??????????????# # """ | | ??????????????# / """ | | ??????????????# # # | | ??????????????? # # ! | | ??????????????? #######+### # | | ???????????????####???????????#### # | | ?????????????????????????????????## # !!! | | ??????????????????????????????????# + !! | | ??????????????????????????????????#### # !! | | ??????????????????????????????????? ###### | | ??????????????????????????????????"" ?????# | | ?????????????????????????????????""" #########+### | | ?????????????????????????????????""" # | | ????????????????????????????????? # | | ??????????????????????????????????"" # | | ?????????????????????##########???"??+ | | ?????????????????????# #??????# | | ?????????????????????# #??????# | | ?????????????????????#"" #??????# | | ?????????????????????#"" #????" # | | ???????????????????###"" #??""" # | | ???????????????????# [k # + ! | | ???????????????????# ##????# | | ???????????????????## % % gg #????# | | ????????????????????# @ gm%##????# | | ???????????????###### # m ####### | | ?????????? % " | | ?????????? g % " | | ?????????? %%%% | | ??????????? i % | | ??????????? % % | | ????????????#######+#"##########+###########" | | ???????????????????? #?????# |*= # # | | ??????????????????? ??????# %"""# "" # | | ?????????????????? ???????# """ R"# "" + | | ??????????????????" ???????# """ """# """ # % | | ???????????????????????????# """ # """ # | | ???????????????????????????# #! """ # | | ???????????????????????????# # #####" | | ?????????????????????Y?????# ! # "" #???? | | ???????????????????????????########### "" #???? | | ?????????????????????????????????????#! """ #????? | | ?????????????????????????????????????# """ #????? | | ?????????????????????????????????????# """ #????? | | ?????????????????????????????????????# #????? | | ?????????????????????????????????????########????? | | ?????????????????????????????????????????????????? | | ?????????????????????????????????????????????????? | | ?????????????????????????????????????????????????? | +----------------------------------------------------+ Best States ------------- Heat Dissipation 45 Energy Generation 14 Energy Capacity 275 Matter Stores 300 Matter Capacity 300 Sight Range 16 Terrain Scan Density 10 Armor Coverage 450 Resistance: KI 30 Power Shielding 66 Evasion (%) 40 Targeting Accuracy 16 Core Analysis 6 Recoil Reduction 2 Item Schematics ----------------- None Robot Schematics ------------------ None Fabricated ------------ Adv. Assault Cannon | x2 | -7/Factory | Preloaded Alien Tech Used ----------------- None Achievements -------------- Dynamic Key Hey, That's Mine! Oops Challenges ------------ None Game ------ Seed ImpactThermicLattice Manual? 0 Play Time 01:32:30 Cumulative 6.5 hours Start 2024.03.31 @ 20:11:03 End 2024.03.31 @ 21:47:29 Sessions 1 Manual Loads 0 Difficulty Rogue Special Mode None Game No. 7 Rogue 7 Adventurer 0 Explorer 0 Win Type - Total 0 Types 0/0/0/0/0/0/0/0/0 Lore% 5 Gallery% 9 Achievement% 13 Wizard Run 0 Options --------- Layout 2 ASCII 0 Keyboard 1 Movement Numpad Keybinds 0 Fullscreen 1 Font 24/Smallcaps Map View 50x44 Zoom Use 0% Tactical HUD 1 Map Filters NONE Filters NONE Steam 1 RUN: 1aab447a-9bd4-4ff5-9cfa-534f1e74bb0c